bitfinex-derivatives/quotes_BTCF0:USTF0_20240817
["timestamp","ask_amount","ask_price","bid_price","bid_amount"]
[1723863025309,0.03,59226.0,59225.0,0.067517]
[1723863026106,0.18870884,59226.0,59223.0,0.0934]
[1723863026312,0.031,59226.0,59225.0,0.068517]
[1723863026500,0.18965342,59226.0,59225.0,0.068517]
[1723863027904,0.19065342,59226.0,59225.0,0.068517]
[1723863028308,0.18761066,59226.0,59225.0,0.068517]
[1723863028811,0.18661066,59226.0,59225.0,0.067517]
[1723863029409,0.18661066,59226.0,59225.0,0.069517]
[1723863029410,0.18561066,59226.0,59225.0,0.069517]
[1723863032607,0.13005437,59226.0,59225.0,0.069517]
[1723863032909,0.03,59226.0,59225.0,0.069517]
[1723863033610,0.03,59226.0,59225.0,0.1369983]
[1723863037414,0.03,59226.0,59225.0,0.0526121]
[1723863037610,0.03,59226.0,59225.0,0.002]
[1723863037812,0.05736049,59226.0,59225.0,0.002]
[1723863039221,0.12487649,59226.0,59225.0,0.002]
[1723863039421,0.097516,59226.0,59225.0,0.002]
[1723863041017,0.27207446,59226.0,59213.0,0.048]
[1723863041217,0.18487467,59215.0,59214.0,0.06753]
[1723863041521,0.42694913,59215.0,59214.0,0.06753]
[1723863041718,0.24207446,59215.0,59214.0,0.06753]
[1723863041922,0.18487467,59216.0,59215.0,0.067529]
[1723863042121,0.41528199,59216.0,59215.0,0.067529]
[1723863043025,0.41528199,59216.0,59215.0,0.069529]
[1723863043716,0.23040732,59216.0,59215.0,0.162929]
[1723863043919,0.18487467,59217.0,59215.0,0.162929]
[1723863044114,0.6002666,59216.0,59213.0,0.06091248]
[1723863044320,0.1460666,59215.0,59213.0,0.06091248]
[1723863044519,0.2135966,59214.0,59213.0,0.06091248]
[1723863045322,0.2136366,59214.0,59213.0,0.06091248]
[1723863046118,0.36482241,59214.0,59213.0,0.06091248]
[1723863046317,0.36544774,59214.0,59213.0,0.06191248]
[1723863046522,0.36544355,59214.0,59213.0,0.06191248]
[1723863047026,0.36544355,59214.0,59213.0,0.06291248]
[1723863047027,0.36744355,59214.0,59213.0,0.06291248]
[1723863047321,0.21626193,59214.0,59213.0,0.06291248]
[1723863047517,0.36741766,59214.0,59213.0,0.06291248]
[1723863047920,0.07157,59214.0,59213.0,0.06291248]
[1723863053419,0.07157,59214.0,59213.0,0.1303202]
[1723863055516,0.07157,59214.0,59213.0,0.06291248]
[1723863055920,0.07157,59214.0,59213.0,0.13031923]
[1723863057024,0.07157,59214.0,59213.0,0.06291248]
[1723863057228,0.08157,59214.0,59213.0,0.06941026]
[1723863057425,0.067534,59210.0,59208.0,0.06741696]
[1723863057625,0.067534,59210.0,59209.0,0.06741696]
[1723863057924,0.067534,59210.0,59208.0,0.06741696]
[1723863058627,0.069534,59210.0,59209.0,0.06741696]
[1723863058926,0.069534,59210.0,59208.0,0.06841696]
[1723863059335,0.3608,59209.0,59208.0,0.06841696]
[1723863059530,0.3608,59209.0,59208.0,0.06939885]
[1723863059718,0.3608,59209.0,59208.0,0.06839885]
[1723863060121,0.36084,59209.0,59208.0,0.06839885]
[1723863060335,4e-05,59209.0,59208.0,0.06839885]
[1723863060833,0.077575,59209.0,59208.0,0.001]
[1723863061534,0.077575,59209.0,59207.0,0.06739885]
[1723863061829,0.0934,59208.0,59207.0,0.06739885]
[1723863062225,0.170936,59208.0,59207.0,0.06739885]
[1723863062431,0.067542,59203.0,59202.0,0.05055697]
[1723863062621,0.679284,59203.0,59202.0,0.05055697]
[1723863062821,0.067546,59200.0,59199.0,0.05055697]
[1723863063026,0.0934,59198.0,59196.0,0.05055697]
[1723863063221,0.06755,59196.0,59192.0,0.0934]
[1723863063430,0.08387727,59194.0,59192.0,0.0934]
[1723863064028,0.067552,59195.0,59191.0,0.0001482]
[1723863064323,0.17728487,59194.0,59191.0,0.01336204]
[1723863064530,0.17728487,59194.0,59191.0,0.0001482]
[1723863064831,0.17728487,59194.0,59192.0,0.012]
[1723863065236,0.0934,59194.0,59192.0,0.012]
[1723863065534,0.0934,59194.0,59191.0,0.0071482]
[1723863066042,0.0934,59194.0,59191.0,0.0001482]
[1723863066333,0.0954,59194.0,59192.0,0.006]
[1723863067122,0.002,59194.0,59193.0,0.160954]
[1723863068334,0.06899884,59194.0,59193.0,0.160954]
[1723863068934,0.06899884,59194.0,59193.0,0.165954]
[1723863069130,0.42979884,59194.0,59193.0,0.165954]
[1723863069337,0.42779884,59194.0,59193.0,0.165954]
[1723863069639,0.42979884,59194.0,59193.0,0.165954]
[1723863070433,0.3628,59194.0,59193.0,0.165954]
[1723863073141,0.3628,59194.0,59193.0,0.072554]
[1723863080745,0.41302996,59194.0,59193.0,0.072554]
[1723863081048,0.3628,59194.0,59193.0,0.005]
[1723863081344,0.3728,59194.0,59193.0,0.005]
[1723863081552,0.4230379,59194.0,59193.0,0.005]
[1723863082843,0.3728,59194.0,59193.0,0.005]
[1723863083143,0.4230487,59194.0,59193.0,0.005]
[1723863083545,0.3728,59194.0,59193.0,0.005]
[1723863085452,0.43979884,59194.0,59193.0,0.005]
[1723863085651,0.3728,59194.0,59193.0,0.005]
[1723863087549,0.3628,59194.0,59193.0,0.21651097]
[1723863087746,0.3628,59194.0,59193.0,0.165954]
[1723863087955,0.3628,59194.0,59193.0,0.27819034]
[1723863088162,0.002,59194.0,59193.0,0.27819034]
[1723863088341,0.05027752,59212.0,59194.0,0.5068]
[1723863088541,0.05027752,59214.0,59208.0,0.0934]
[1723863088749,0.428329,59215.0,59208.0,0.0934]
[1723863089358,0.428329,59215.0,59208.0,0.16074543]
[1723863089555,0.0934,59213.0,59208.0,0.0934]
[1723863089755,0.0934,59210.0,59206.0,0.06734543]
[1723863089942,0.3608,59207.0,59206.0,0.13488343]
[1723863090146,0.3608,59207.0,59206.0,0.11806575]
[1723863090451,0.0934,59208.0,59206.0,0.11806575]
[1723863090753,0.0934,59208.0,59207.0,0.05052775]
[1723863091057,0.0934,59208.0,59206.0,0.13094353]
[1723863091258,0.003,59207.0,59206.0,0.13194353]
[1723863091458,0.004,59207.0,59206.0,0.13294353]
[1723863092448,0.00304,59207.0,59206.0,0.13294353]
[1723863092760,0.00304,59207.0,59206.0,0.08245578]
[1723863092953,0.00304,59207.0,59206.0,0.08145578]
[1723863093259,4e-05,59207.0,59206.0,0.069538]
[1723863093649,0.00304,59207.0,59206.0,0.069538]
[1723863093848,0.00304,59207.0,59206.0,0.068538]
[1723863094058,0.00404,59207.0,59206.0,0.069538]
[1723863097358,0.00404,59207.0,59206.0,0.162938]
[1723863111360,0.00404,59207.0,59206.0,0.23028343]
[1723863112770,0.00404,59207.0,59206.0,0.74108343]
[1723863112966,0.00404,59207.0,59206.0,0.721638]
[1723863113857,0.00025346,59214.0,59210.0,0.067533]
[1723863114053,0.00025346,59214.0,59212.0,0.0934]
[1723863114968,0.00025346,59214.0,59213.0,0.067531]
[1723863115563,0.082651,59214.0,59213.0,0.067531]
[1723863115766,0.14517827,59214.0,59213.0,0.067531]
[1723863115961,0.082651,59214.0,59213.0,0.067531]
[1723863116161,0.20021325,59214.0,59213.0,0.067531]
[1723863116560,0.082651,59214.0,59213.0,0.067531]
[1723863116767,0.082651,59214.0,59213.0,0.068531]
[1723863116768,0.14520202,59214.0,59213.0,0.068531]
[1723863116963,0.20023796,59214.0,59213.0,0.068531]
[1723863117266,0.15501037,59214.0,59213.0,0.069531]
[1723863119166,0.082651,59214.0,59213.0,0.05830126]
[1723863119365,0.15501037,59214.0,59213.0,0.05830126]
[1723863119670,0.08256278,59214.0,59213.0,0.05830126]
[1723863119872,0.15471548,59214.0,59213.0,0.05830126]
[1723863120377,0.067531,59213.0,59208.0,0.067536]
[1723863120579,0.4542,59209.0,59208.0,0.067536]
[1723863120779,0.60866202,59209.0,59208.0,0.067536]
[1723863120971,0.74316434,59209.0,59208.0,0.067536]
[1723863121670,0.74320434,59209.0,59208.0,0.067536]
[1723863122176,0.24790202,59209.0,59208.0,0.067536]
[1723863122380,0.51530202,59209.0,59208.0,0.08503993]
[1723863122676,0.51630202,59209.0,59208.0,0.08603993]
[1723863123465,0.15550202,59209.0,59208.0,0.08603993]
[1723863123667,0.36184,59209.0,59208.0,0.08503993]
[1723863123872,0.36284,59209.0,59208.0,0.08603993]
[1723863124271,0.36284,59209.0,59208.0,0.15353191]
[1723863124474,0.37284,59209.0,59208.0,0.15353191]
[1723863125470,0.37284,59209.0,59208.0,0.08603993]
[1723863125471,0.36284,59209.0,59208.0,0.08603993]
[1723863127473,0.41328118,59209.0,59208.0,0.08603993]
[1723863128073,0.36284,59209.0,59208.0,0.08603993]
[1723863128473,0.41328118,59209.0,59208.0,0.08603993]
[1723863130678,0.39020536,59209.0,59208.0,0.08603993]
[1723863133988,0.39020534,59209.0,59208.0,0.08603993]
[1723863136884,0.02940534,59209.0,59208.0,0.08603993]
[1723863137186,0.39020534,59209.0,59208.0,0.08603993]
[1723863138491,0.39020525,59209.0,59208.0,0.08603993]
[1723863138788,0.41331256,59209.0,59208.0,0.08603993]
[1723863139191,0.41331441,59209.0,59208.0,0.08603993]
[1723863139490,0.00204,59209.0,59208.0,0.08603993]
[1723863139686,0.41331979,59209.0,59208.0,0.08603993]
[1723863139987,0.36284,59209.0,59208.0,0.08603993]
[1723863142186,0.36284,59209.0,59208.0,0.15352553]
[1723863142489,0.36284,59209.0,59208.0,0.08603993]
[1723863143491,0.36284,59209.0,59208.0,0.15352642]
[1723863143879,0.45624,59209.0,59208.0,0.15352642]
[1723863145286,0.45624,59209.0,59208.0,0.08603993]
[1723863149195,0.52353675,59209.0,59208.0,0.08603993]
[1723863149489,0.52362267,59209.0,59208.0,0.08603993]
[1723863152291,0.45624,59209.0,59208.0,0.08603993]
[1723863152796,0.52363297,59209.0,59208.0,0.08603993]
[1723863153504,0.46624,59209.0,59208.0,0.08603993]
[1723863153688,0.66518109,59209.0,59208.0,0.08603993]
[1723863155491,0.30438109,59209.0,59208.0,0.08603993]
[1723863155694,0.66518109,59209.0,59208.0,0.08603993]
[1723863156198,0.66518109,59209.0,59208.0,0.01850393]
[1723863156400,0.54749217,59209.0,59194.0,0.047]
[1723863156589,0.4542,59195.0,59194.0,0.067552]
[1723863156902,0.53409898,59195.0,59194.0,0.067552]
[1723863157602,0.48160993,59195.0,59194.0,0.067552]
[1723863157800,0.53390086,59195.0,59194.0,0.071552]
[1723863158102,0.53390086,59195.0,59194.0,0.08683752]
[1723863158288,0.58254238,59195.0,59194.0,0.08683752]
[1723863158492,0.48260993,59195.0,59194.0,0.08683752]
[1723863158891,0.58353244,59195.0,59194.0,0.08683752]
[1723863159389,0.48260993,59195.0,59194.0,0.08683752]
[1723863160294,0.58345399,59195.0,59194.0,0.08683752]
[1723863160696,0.45524,59195.0,59194.0,0.08683752]
[1723863160894,0.45524,59195.0,59194.0,0.18023752]
[1723863160895,0.36184,59195.0,59194.0,0.18023752]
[1723863161394,0.36184,59195.0,59194.0,0.26444132]
[1723863161592,0.36184,59195.0,59194.0,0.37705229]
[1723863161790,0.36184,59195.0,59194.0,0.29284849]
[1723863165507,0.36184,59195.0,59194.0,0.29247428]
[1723863166406,0.36184,59195.0,59194.0,0.46247428]
[1723863167609,0.00104,59195.0,59194.0,0.46247428]
[1723863170102,0.00104,59195.0,59194.0,0.46252474]
[1723863176302,0.00104,59195.0,59194.0,0.35023752]
[1723863178714,0.00104,59195.0,59194.0,0.01928552]
[1723863179011,0.00104,59195.0,59194.0,0.004]
[1723863179012,0.449391,59195.0,59194.0,0.004]
[1723863182209,0.429391,59195.0,59194.0,0.004]
[1723863182516,0.522791,59195.0,59194.0,0.004]
[1723863184918,0.883591,59195.0,59194.0,0.004]
[1723863187110,0.93400031,59195.0,59194.0,0.004]
[1723863189807,0.21240031,59195.0,59194.0,0.004]
[1723863190016,0.93400031,59195.0,59194.0,0.004]
[1723863190216,0.883591,59195.0,59194.0,0.004]
[1723863191618,0.161991,59195.0,59194.0,0.004]
[1723863192419,0.883591,59195.0,59194.0,0.004]
[1723863194923,0.161991,59195.0,59194.0,0.004]
[1723863195119,0.883591,59195.0,59194.0,0.004]
[1723863195725,0.161991,59195.0,59194.0,0.004]
[1723863196509,0.883591,59195.0,59194.0,0.004]
[1723863197719,0.893591,59195.0,59194.0,0.1556]
[1723863197921,0.171991,59195.0,59194.0,0.1556]
[1723863198124,0.893591,59195.0,59194.0,0.1556]
[1723863198814,0.81604,59195.0,59194.0,0.1556]
[1723863200224,0.72264,59195.0,59194.0,0.223152]
[1723863200446,0.36184,59195.0,59194.0,0.223152]
[1723863200624,0.36184,59195.0,59194.0,0.316552]
[1723863202619,0.45524,59195.0,59194.0,0.223152]
[1723863205023,0.45524,59195.0,59194.0,0.272452]
[1723863207226,0.09444,59195.0,59194.0,0.272452]
[1723863209030,0.09444,59195.0,59194.0,0.33991197]
[1723863210130,0.45524,59195.0,59194.0,0.33991197]
[1723863210429,0.09444,59195.0,59194.0,0.2049]
[1723863210633,0.45524,59195.0,59194.0,0.2049]
[1723863211023,0.45524,59195.0,59194.0,0.1556]
[1723863211840,0.09444,59195.0,59194.0,0.1556]
[1723863212125,0.45524,59195.0,59194.0,0.1556]
[1723863213128,0.09444,59195.0,59194.0,0.1556]
[1723863213432,0.45524,59195.0,59194.0,0.1556]
[1723863214518,0.50564137,59195.0,59194.0,0.22306789]
[1723863214827,0.52104318,59195.0,59194.0,0.22306789]
[1723863215128,0.53104318,59195.0,59194.0,0.22306789]
[1723863215727,0.48064181,59195.0,59194.0,0.22306789]
[1723863216322,0.45524,59195.0,59194.0,0.22306789]
[1723863218929,0.09444,59195.0,59194.0,0.22306789]
[1723863219133,0.45524,59195.0,59194.0,0.22306789]
[1723863220327,0.45524,59195.0,59194.0,0.1556]
[1723863222532,0.09444,59195.0,59194.0,0.1556]
[1723863222833,0.45524,59195.0,59194.0,0.1556]
[1723863224336,0.09444,59195.0,59194.0,0.1556]
[1723863224536,0.45524,59195.0,59194.0,0.1556]
[1723863225433,0.09444,59195.0,59194.0,0.1556]
[1723863225625,0.52246999,59195.0,59194.0,0.1556]
[1723863225839,0.45524,59195.0,59194.0,0.1556]
[1723863227534,0.52246999,59195.0,59194.0,0.1556]
[1723863227837,0.45524,59195.0,59194.0,0.1556]
[1723863228535,0.52246999,59195.0,59194.0,0.1556]
[1723863229639,0.46524,59195.0,59194.0,0.1556]
[1723863230035,0.53250904,59195.0,59194.0,0.22312677]
[1723863230228,0.53250904,59195.0,59194.0,0.1556]
[1723863230635,0.53250904,59195.0,59194.0,0.22312426]
[1723863230833,0.53250904,59195.0,59194.0,0.1556]
[1723863233841,0.46524,59195.0,59194.0,0.1556]
[1723863234637,0.45524,59195.0,59194.0,0.1556]
[1723863235850,0.45524,59195.0,59194.0,0.30741697]
[1723863235851,0.4123,59195.0,59194.0,0.30741697]
[1723863236035,0.4123,59195.0,59194.0,0.42090307]
[1723863236438,0.36184,59195.0,59194.0,0.3366381]
[1723863237246,0.36184,59195.0,59194.0,0.3362205]
[1723863239943,0.36184,59195.0,59194.0,0.33616007]
[1723863241343,0.4123,59195.0,59194.0,0.42058353]
[1723863241943,0.36184,59195.0,59194.0,0.42058353]
[1723863242141,0.36184,59195.0,59194.0,0.33616007]
[1723863242750,0.4123,59195.0,59194.0,0.42057842]
[1723863243155,0.36184,59195.0,59194.0,0.42057842]
[1723863243451,0.4123,59195.0,59194.0,0.42057842]
[1723863244347,0.4123,59195.0,59194.0,0.223152]
[1723863246337,0.0515,59195.0,59194.0,0.223152]
[1723863246539,0.4123,59195.0,59194.0,0.223152]
[1723863247145,0.0515,59195.0,59194.0,0.223152]
[1723863247350,0.4123,59195.0,59194.0,0.223152]
[1723863248052,0.0515,59195.0,59194.0,0.223152]
[1723863248255,0.4123,59195.0,59194.0,0.223152]
[1723863249451,0.0515,59195.0,59194.0,0.223152]
[1723863249649,0.4123,59195.0,59194.0,0.223152]
[1723863249848,0.4323,59195.0,59194.0,0.223152]
[1723863250454,0.38184,59195.0,59194.0,0.223152]
[1723863251555,0.38184,59195.0,59194.0,0.1556]
[1723863254356,0.449391,59195.0,59194.0,0.1556]
[1723863254559,0.449391,59195.0,59194.0,0.20624308]
[1723863257059,0.449391,59195.0,59194.0,0.1556]
[1723863258663,0.810191,59195.0,59194.0,0.1556]
[1723863261467,0.810191,59195.0,59194.0,0.20624308]
[1723863262354,0.810191,59195.0,59194.0,0.1556]
[1723863264063,0.87741912,59195.0,59194.0,0.20624308]
[1723863266261,0.51661912,59195.0,59194.0,0.20624308]
[1723863270269,0.47524,59195.0,59194.0,0.1556]
[1723863270863,0.52569135,59195.0,59194.0,0.22313866]
[1723863271160,0.52569135,59195.0,59194.0,0.29069066]
[1723863271360,0.52569135,59195.0,59194.0,0.29064655]
[1723863271765,0.47524,59195.0,59194.0,0.223152]
[1723863273061,0.11444,59195.0,59194.0,0.223152]
[1723863273370,0.47524,59195.0,59194.0,0.223152]
[1723863273569,0.11444,59195.0,59194.0,0.223152]
[1723863273773,0.47524,59195.0,59194.0,0.223152]
[1723863276369,0.52569958,59195.0,59194.0,0.223152]
[1723863276870,0.47524,59195.0,59194.0,0.223152]
[1723863277173,0.5256969,59195.0,59194.0,0.223152]
[1723863277369,0.47524,59195.0,59194.0,0.223152]
[1723863277874,0.52568819,59195.0,59194.0,0.223152]
[1723863278573,0.47524,59195.0,59194.0,0.223152]
[1723863278771,0.52568819,59195.0,59194.0,0.223152]
[1723863279267,0.47524,59195.0,59194.0,0.223152]
[1723863279866,0.52568819,59195.0,59194.0,0.223152]
[1723863280062,0.47524,59195.0,59194.0,0.223152]
[1723863281269,0.43228819,59195.0,59194.0,0.223152]
[1723863281479,0.38184,59195.0,59194.0,0.223152]
[1723863283879,0.38184,59195.0,59194.0,0.30757035]
[1723863284061,0.38184,59195.0,59194.0,0.223152]
[1723863287476,0.47524,59195.0,59194.0,0.223152]
[1723863291074,0.52568819,59195.0,59194.0,0.223152]
[1723863291278,0.47524,59195.0,59194.0,0.223152]
[1723863292882,0.52568819,59195.0,59194.0,0.223152]
[1723863293379,0.47524,59195.0,59194.0,0.223152]
[1723863293568,0.52568819,59195.0,59194.0,0.223152]
[1723863293770,0.47524,59195.0,59194.0,0.223152]
[1723863294168,0.52568819,59195.0,59194.0,0.223152]
[1723863294571,0.47524,59195.0,59194.0,0.223152]
[1723863295783,0.32364,59195.0,59194.0,0.071552]
[1723863295977,0.35364,59195.0,59194.0,0.071552]
[1723863296173,0.44704,59195.0,59194.0,0.071552]
[1723863297478,0.1234,59195.0,59194.0,0.071552]
[1723863297687,0.4842,59195.0,59194.0,0.071552]
[1723863302485,0.06722812,59195.0,59194.0,0.0974]
[1723863302687,0.00025346,59200.0,59198.0,0.067548]
[1723863302688,0.0504188,59199.0,59198.0,0.067548]
[1723863302985,0.00025346,59200.0,59199.0,0.067547]
[1723863303291,0.00025346,59200.0,59199.0,0.17990621]
[1723863304285,0.36105346,59200.0,59199.0,0.26428279]
[1723863304485,0.36105346,59200.0,59199.0,0.067547]
[1723863304881,0.45545346,59200.0,59199.0,0.068547]
[1723863305087,0.50587226,59200.0,59199.0,0.068547]
[1723863305286,0.55147226,59200.0,59199.0,0.068547]
[1723863305594,0.50105346,59200.0,59199.0,0.068547]
[1723863305780,0.55346513,59200.0,59199.0,0.068547]
[1723863306187,0.55346657,59200.0,59199.0,0.068547]
[1723863307390,0.55346657,59200.0,59199.0,0.08095966]
[1723863308095,0.14225346,59200.0,59199.0,0.08095966]
[1723863309189,0.50305346,59200.0,59199.0,0.08095966]
[1723863310087,0.40965346,59200.0,59199.0,0.08095966]
[1723863310288,0.50305346,59200.0,59199.0,0.08095966]
[1723863312485,0.14225346,59200.0,59199.0,0.08095966]
[1723863312795,0.50305346,59200.0,59199.0,0.08095966]
[1723863315089,0.14225346,59200.0,59199.0,0.08095966]
[1723863315289,0.50305346,59200.0,59199.0,0.08095966]
[1723863315991,0.55346657,59200.0,59199.0,0.14843981]
[1723863317189,0.50305346,59200.0,59199.0,0.08095966]
[1723863317601,0.50305346,59200.0,59199.0,0.14843769]
[1723863318294,0.14225346,59200.0,59199.0,0.14843769]
[1723863318897,0.14225346,59200.0,59199.0,0.08095966]
[1723863319495,0.09665346,59200.0,59199.0,0.08095966]
[1723863327199,0.09665346,59200.0,59199.0,0.27703745]
[1723863327506,0.09665346,59200.0,59199.0,0.19269819]
[1723863328301,0.09665346,59200.0,59199.0,0.27704084]
[1723863328497,0.09665346,59200.0,59199.0,0.19269819]
[1723863328901,0.09665346,59200.0,59199.0,0.27705011]
[1723863329107,0.00325346,59200.0,59199.0,0.27705011]
[1723863329403,0.00325346,59200.0,59199.0,0.19269819]
[1723863330103,0.00325346,59200.0,59199.0,0.19274385]
[1723863330606,0.00325346,59200.0,59199.0,0.08095966]
[1723863330804,0.00325346,59200.0,59199.0,0.1930659]
[1723863331004,0.00325346,59200.0,59199.0,0.27742708]
[1723863331309,0.00325346,59200.0,59199.0,0.27744516]
[1723863332199,0.00325346,59200.0,59199.0,0.1930659]
[1723863334709,0.00325346,59200.0,59199.0,0.19308262]
[1723863339314,0.00325346,59200.0,59199.0,0.19282812]
[1723863343914,0.00325346,59200.0,59199.0,0.19272411]
[1723863345721,0.05370736,59200.0,59199.0,0.19272411]
[1723863345918,0.05370736,59200.0,59199.0,0.2771278]
[1723863345919,0.00325346,59200.0,59199.0,0.2771278]
[1723863346117,0.00325346,59200.0,59199.0,0.19272411]
[1723863348414,0.00325346,59200.0,59199.0,0.19272581]
[1723863351227,0.05370607,59200.0,59199.0,0.19272581]
[1723863353114,0.00325346,59200.0,59199.0,0.19296127]
[1723863353516,0.067548,59198.0,59192.0,0.1010433]
[1723863353711,0.067548,59198.0,59183.0,0.239]
[1723863353712,0.4542,59193.0,59189.0,0.08469767]
[1723863353923,0.4542,59193.0,59189.0,0.05067351]
[1723863353924,0.53823749,59190.0,59189.0,0.05067351]
[1723863354125,0.4942,59190.0,59183.0,0.05067351]
[1723863354321,0.4542,59184.0,59183.0,0.05067351]
[1723863354631,0.4542,59184.0,59181.0,0.06756168]
[1723863354923,0.04036859,59182.0,59181.0,0.01211196]
[1723863355127,0.4542,59184.0,59178.0,0.13513268]
[1723863355320,0.3608,59184.0,59182.0,0.05055279]
[1723863355522,0.3608,59184.0,59183.0,0.014]
[1723863355718,0.3608,59184.0,59183.0,0.02]
[1723863355926,0.3608,59184.0,59183.0,0.006]
[1723863356127,0.428364,59184.0,59183.0,0.006]
[1723863356333,0.438364,59184.0,59183.0,0.006]
[1723863356535,0.438364,59184.0,59182.0,0.007]
[1723863356739,0.0934,59183.0,59182.0,0.007]
[1723863357319,0.160965,59183.0,59182.0,0.007]
[1723863357529,0.28110863,59183.0,59182.0,0.007]
[1723863357828,0.28114863,59183.0,59182.0,0.007]
[1723863358044,0.28114863,59183.0,59177.0,0.00025346]
[1723863358045,0.067569,59180.0,59177.0,0.00025346]
[1723863358217,0.4402,59178.0,59177.0,0.00025346]
[1723863358723,0.4332,59178.0,59177.0,0.00025346]
[1723863358922,0.4322,59178.0,59177.0,0.00025346]
[1723863359321,0.4332,59178.0,59177.0,0.00725346]
[1723863359525,0.43324,59178.0,59177.0,0.00725346]
[1723863359723,0.43324,59178.0,59177.0,0.01425346]
[1723863361724,0.33984,59178.0,59177.0,0.01425346]
[1723863361936,0.43324,59178.0,59177.0,0.01425346]
[1723863364540,0.09444,59178.0,59177.0,0.01425346]
[1723863364833,0.45524,59178.0,59177.0,0.01425346]
[1723863367034,0.65524,59178.0,59177.0,0.01425346]
[1723863367928,0.45524,59178.0,59177.0,0.01425346]
[1723863369235,0.09444,59178.0,59177.0,0.01425346]
[1723863369432,0.45524,59178.0,59177.0,0.01425346]
[1723863369829,0.09444,59178.0,59177.0,0.01425346]
[1723863370442,0.45524,59178.0,59177.0,0.01425346]
[1723863372437,0.09444,59178.0,59177.0,0.01425346]
[1723863372648,0.45524,59178.0,59177.0,0.01425346]
[1723863372838,0.09444,59178.0,59177.0,0.01425346]
[1723863373136,0.45524,59178.0,59177.0,0.01425346]
[1723863374732,0.46524,59178.0,59177.0,0.01425346]
[1723863375437,0.45524,59178.0,59177.0,0.01425346]
[1723863381048,0.46524,59178.0,59177.0,0.01425346]
[1723863381947,0.532811,59178.0,59177.0,0.01425346]
[1723863383254,0.532811,59178.0,59177.0,0.06480625]
[1723863384152,0.532811,59178.0,59177.0,0.01425346]
[1723863384452,0.172011,59178.0,59177.0,0.01425346]
[1723863384748,0.893611,59178.0,59177.0,0.01425346]
[1723863384951,0.893611,59178.0,59177.0,0.06490507]
[1723863385347,0.97756209,59178.0,59177.0,0.01425346]
[1723863385649,0.92099451,59178.0,59177.0,0.01425346]
[1723863388153,0.93288841,59178.0,59177.0,0.01425346]
[1723863390952,0.21128841,59178.0,59177.0,0.01425346]
[1723863391256,0.93288841,59178.0,59177.0,0.01425346]
[1723863397550,0.83948841,59178.0,59177.0,0.01425346]
[1723863397860,0.93288841,59178.0,59177.0,0.01425346]
[1723863400259,1.00045941,59178.0,59177.0,0.01425346]
[1723863401861,1.94227741,59178.0,59167.0,0.05061319]
[1723863402049,0.88210155,59168.0,59167.0,0.05061319]
[1723863402356,1.1851482,59168.0,59163.0,0.0946]
[1723863402560,0.160987,59164.0,59163.0,0.0946]
[1723863402764,0.550987,59164.0,59163.0,0.0946]
[1723863403658,0.551027,59164.0,59163.0,0.14521308]
[1723863403850,0.551027,59164.0,59163.0,0.0986]
[1723863405266,0.911827,59164.0,59163.0,0.0986]
[1723863405462,0.911827,59164.0,59163.0,0.0946]
[1723863405661,0.911827,59164.0,59163.0,0.0966]
[1723863405866,0.912827,59164.0,59163.0,0.0966]
[1723863406055,0.912827,59164.0,59163.0,0.0501]
[1723863406253,0.912827,59164.0,59163.0,0.002]
[1723863406254,0.911827,59164.0,59163.0,0.002]
[1723863406459,0.912827,59164.0,59163.0,0.002]
[1723863407770,0.92488279,59164.0,59163.0,0.002]
[1723863408272,0.56408279,59164.0,59163.0,0.002]
[1723863408562,0.92488279,59164.0,59163.0,0.002]
[1723863410160,0.56408279,59164.0,59163.0,0.002]
[1723863410362,0.92488279,59164.0,59163.0,0.002]
[1723863411869,0.56408279,59164.0,59163.0,0.002]
[1723863412166,0.92488279,59164.0,59163.0,0.002]
[1723863413363,0.56408279,59164.0,59163.0,0.002]
[1723863413767,0.92488279,59164.0,59163.0,0.002]
[1723863414767,0.819427,59164.0,59163.0,0.002]
[1723863414966,0.522827,59164.0,59163.0,0.002]
[1723863415561,0.522827,59164.0,59163.0,0.05261308]
[1723863417172,0.522827,59164.0,59163.0,0.002]
[1723863417470,0.45524,59164.0,59163.0,0.069588]
[1723863417671,0.45524,59164.0,59163.0,0.12020697]
[1723863417976,0.45524,59164.0,59163.0,0.12020728]
[1723863418175,0.45524,59164.0,59163.0,0.069588]
[1723863428674,0.45524,59164.0,59163.0,0.119488]
[1723863430379,0.46524,59164.0,59163.0,0.119488]
[1723863431773,0.45524,59164.0,59163.0,0.119488]
[1723863434086,0.09444,59164.0,59163.0,0.119488]
[1723863434280,0.45524,59164.0,59163.0,0.119488]
[1723863439592,0.09444,59164.0,59163.0,0.119488]
[1723863439890,0.45524,59164.0,59163.0,0.119488]
[1723863443496,0.36184,59164.0,59163.0,0.119488]
[1723863443795,0.06728107,59168.0,59163.0,0.119488]
[1723863443796,0.0001482,59168.0,59167.0,0.067583]
[1723863443990,0.0001482,59168.0,59167.0,0.35957449]
[1723863444186,0.0001482,59168.0,59167.0,0.27473621]
[1723863445100,0.0021482,59168.0,59167.0,1.18177621]
[1723863445393,0.0031482,59168.0,59167.0,1.18177621]
[1723863445601,0.0031482,59168.0,59167.0,1.26616627]
[1723863446400,0.0031482,59168.0,59167.0,0.86616627]
[1723863446603,0.0031482,59168.0,59167.0,0.668023]
[1723863446900,0.0031482,59168.0,59167.0,0.75241306]
[1723863447503,0.0031482,59168.0,59167.0,0.668023]
[1723863448205,0.0031482,59168.0,59167.0,1.068023]
[1723863448399,0.0031482,59168.0,59167.0,0.668023]
[1723863448704,0.0031482,59168.0,59167.0,0.67976937]
[1723863452609,0.0031482,59168.0,59167.0,0.17272937]
[1723863454011,0.0331482,59168.0,59167.0,0.17272937]
[1723863463512,0.0331482,59168.0,59167.0,0.07932937]
[1723863463715,0.0331482,59168.0,59167.0,0.17272937]
[1723863465700,0.0331482,59168.0,59167.0,0.07932937]
[1723863470521,0.0331482,59168.0,59167.0,0.27745232]
[1723863471318,0.0331482,59168.0,59167.0,0.2774718]
[1723863471613,0.0331482,59168.0,59167.0,0.19294935]
[1723863476107,0.0331482,59168.0,59167.0,0.19309981]
[1723863477414,0.08354218,59168.0,59167.0,0.19309981]